fUSD/lending_fUSD_20250417
["ID","MTS","AMOUNT","RATE_DAILY","PERIOD"]
[358253934,1744876337080,-507.89,0.00053424,120]
[358253935,1744876337090,-1748.54,0.00053424,120]
[358253936,1744876337101,-3514.34,0.00053424,120]
[358253937,1744876337111,-1749.19,0.00053424,120]
[358253938,1744876337123,-1134.15,0.00053424,120]
[358253939,1744876337137,-500.0,0.00053424,120]
[358253940,1744876337149,-1157.9,0.00053424,120]
[358253941,1744876337158,-1115.45,0.00053424,120]
[358253942,1744876337168,-1269.95,0.00053424,120]
[358253943,1744876337180,-1020.0,0.00053424,120]
[358253944,1744876337191,-1129.1,0.00053424,120]
[358253945,1744876337200,-1581.24,0.00053424,120]
[358253946,1744876337212,-766.52,0.00053424,120]
[358253947,1744876337222,-683.59,0.00053424,120]
[358253948,1744876337232,-500.0,0.00053424,120]
[358253949,1744876337242,-500.0,0.00053424,120]
[358253950,1744876337251,-605.07,0.00053424,120]
[358253951,1744876337260,-1943.48,0.00053424,120]
[358253952,1744876337272,-500.0,0.00053424,120]
[358253953,1744876337281,-945.69,0.00053424,120]
[358253954,1744876337291,-500.0,0.00053424,120]
[358253955,1744876337301,-1873.76,0.00053424,120]
[358253956,1744876337312,-566.9,0.00053424,120]
[358253957,1744876337322,-536.75,0.00053424,120]
[358253958,1744876337331,-1511.21,0.00053424,120]
[358253959,1744876337341,-500.0,0.00053424,30]
[358253960,1744876337350,-2015.84,0.00053424,120]
[358253961,1744876337360,-500.0,0.00053424,120]
[358253962,1744876337521,-576.1,0.00053424,120]
[358253963,1744876337546,-500.0,0.00053424,120]
[358253964,1744876337556,-503.02,0.00053424,120]
[358253965,1744876337565,-1485.3,0.00053424,120]
[358253966,1744876337574,-616.82,0.00053424,120]
[358253967,1744876337584,-1889.42,0.00053424,120]
[358253968,1744876337594,-500.0,0.00053424,120]
[358253969,1744876337603,-521.54,0.00053424,120]
[358253970,1744876337612,-500.0,0.00053424,120]
[358253971,1744876337621,-1626.25,0.00053424,120]
[358253972,1744876337631,-1339.26,0.00053424,120]
[358253973,1744876337640,-1497.28,0.00053424,120]
[358253974,1744876337650,-1832.25,0.00053424,120]
[358253975,1744876337659,-630.84,0.00053424,120]
[358253976,1744876337669,-500.0,0.00053424,120]
[358253977,1744876337679,-615.64,0.00053424,120]
[358253978,1744876337689,-212.64,0.00053424,120]
[358253979,1744876337699,-692.24,0.00053424,120]
[358253980,1744876337709,-1231.98,0.00053424,120]
[358253981,1744876337719,-1043.32,0.00053424,120]
[358253982,1744876337728,-1684.61,0.00053424,120]
[358253983,1744876337738,-500.0,0.00053424,120]
[358253984,1744876337747,-500.0,0.00053424,120]
[358253985,1744876337757,-500.0,0.00053424,120]
[358253986,1744876337767,-668.2,0.00053424,120]
[358253987,1744876337778,-227.61376701,0.00053424,120]
[358253988,1744876337788,-572.83377258,0.00053424,120]
[358253989,1744876337797,-500.0,0.00053424,120]
[358253990,1744876337806,-864.39,0.00053424,120]
[358253991,1744876337816,-626.02,0.00053424,120]
[358253992,1744876337825,-1072.56,0.00053424,120]
[358253993,1744876337834,-1764.88,0.00053424,120]
[358253994,1744876337843,-500.0,0.00053424,120]
[358253995,1744876337851,-5640.62,0.00053424,120]
[358253996,1744876337860,-917.98,0.00053424,120]
[358253997,1744876337869,-1475.44,0.00053424,120]
[358253998,1744876337878,-1612.75,0.00053424,120]
[358253999,1744876337888,-500.0,0.00053424,120]
[358254000,1744876337898,-2211.01,0.00053424,120]
[358254001,1744876337908,-791.97,0.00053424,14]
[358254002,1744876337917,-1177.02,0.00053424,120]
[358254003,1744876337926,-1468.16,0.00053424,120]
[358254004,1744876337936,-1829.33,0.00053424,120]
[358254005,1744876337946,-500.0,0.00053424,120]
[358254006,1744876337955,-520.62,0.00053424,120]
[358254007,1744876337965,-500.0,0.00053424,120]
[358254008,1744876337974,-793.46,0.00053424,120]
[358254009,1744876337984,-481.1169679,0.00053424,120]
[358254010,1744876337993,-500.0,0.00053424,120]
[358254011,1744876338003,-1128.03,0.00053424,120]
[358254012,1744876338012,-500.0,0.00053424,120]
[358254013,1744876338022,-527.45,0.00053424,120]
[358254014,1744876338031,-500.0,0.00053424,120]
[358254015,1744876338041,-400.82413128,0.00053424,120]
[358254016,1744876338051,-674.54,0.00053424,120]
[358254017,1744876338061,-504.45,0.00053424,120]
[358254018,1744876338070,-500.0,0.00053424,120]
[358254019,1744876338080,-500.0,0.00053424,120]
[358254020,1744876338089,-586.57,0.00053424,120]
[358254021,1744876338099,-1036.71,0.00053424,120]
[358254022,1744876338109,-909.38,0.00053424,120]
[358254023,1744876338119,-500.0,0.00053424,120]
[358254024,1744876338131,-500.0,0.00053424,120]
[358254025,1744876338142,-1171.86,0.00053424,120]
[358254026,1744876338152,-2181.26,0.00053424,120]
[358254027,1744876338162,-500.0,0.00053424,120]
[358254028,1744876338172,-675.13,0.00053424,120]
[358254029,1744876338183,-500.0,0.00053424,120]
[358254030,1744876338194,-500.0,0.00053424,120]
[358254031,1744876338205,-1081.53,0.00053424,120]
[358254032,1744876338216,-1595.7,0.00053424,120]
[358254033,1744876338226,-500.0,0.00053424,120]
[358254034,1744876338236,-1097.37,0.00053424,120]
[358254035,1744876338246,-500.0,0.00053424,120]
[358254036,1744876338256,-1093.79,0.00053424,120]
[358254037,1744876338266,-722.02,0.00053424,120]
[358254038,1744876338277,-978.59,0.00053424,120]
[358254039,1744876338287,-1836.63,0.00053424,120]
[358254040,1744876338296,-258.73060799,0.00053424,120]
[358254041,1744876338307,-614.33,0.00053424,120]
[358254042,1744876338317,-1012.01,0.00053424,120]
[358254043,1744876338326,-2529.41,0.00053424,120]
[358254044,1744876338336,-1942.54,0.00053424,120]
[358254045,1744876338346,-500.0,0.00053424,120]
[358254046,1744876338355,-2464.72,0.00053424,120]
[358254047,1744876338365,-1110.2,0.00053424,120]
[358254048,1744876338375,-771.84,0.00053424,120]
[358254049,1744876338385,-1931.2,0.00053424,120]
[358254050,1744876338395,-500.0,0.00053424,120]
[358254051,1744876338405,-631.99260305,0.00053424,120]
[358254052,1744876338415,-676.22,0.00053424,120]
[358254053,1744876338426,-601.64,0.00053424,120]
[358254054,1744876338436,-500.0,0.00053424,120]
[358254055,1744876338446,-2027.54,0.00053424,120]
[358254056,1744876338456,-1731.61,0.00053424,120]
[358254057,1744876338466,-506.42,0.00053424,120]
[358254058,1744876338476,-560.74,0.00053424,120]
[358254059,1744876338486,-500.0,0.00053424,120]
[358254060,1744876338497,-1571.6,0.00053424,120]
[358254061,1744876338506,-575.17,0.00053424,120]
[358254062,1744876338515,-500.0,0.00053424,120]
[358254063,1744876338525,-500.0,0.00053424,120]
[358254064,1744876338535,-1491.97,0.00053424,120]
[358254065,1744876338545,-500.0,0.00053424,120]
[358254066,1744876338555,-1061.2,0.00053424,120]
[358254067,1744876338565,-588.76958192,0.00053424,120]
[358254068,1744876338575,-176.35461358,0.00053424,120]
[358254069,1744876338584,-559.87,0.00053424,120]
[358254070,1744876338594,-1783.03,0.00053424,120]
[358254071,1744876338604,-500.0,0.00053424,120]
[358254072,1744876338614,-500.0,0.00053424,120]
[358254073,1744876338624,-1489.6,0.00053424,120]
[358254074,1744876338633,-3035.42,0.00053424,120]
[358254075,1744876338643,-1985.57,0.00053424,120]
[358254076,1744876338653,-2015.28,0.00053424,120]
[358254077,1744876338662,-835.38,0.00053424,120]
[358254078,1744876338672,-500.0,0.00053424,120]
[358254079,1744876338681,-843.17,0.00053424,120]
[358254080,1744876338691,-728.48,0.00053424,120]
[358254081,1744876338701,-2125.57,0.00053424,120]
[358254082,1744876338711,-506.65,0.00053424,120]
[358254083,1744876338721,-517.91,0.00053424,120]
[358254084,1744876338731,-531.0,0.00053424,120]
[358254085,1744876338740,-1110.06,0.00053424,120]
[358254086,1744876338751,-500.0,0.00053424,120]
[358254087,1744876338761,-3548.1,0.00053424,120]
[358254088,1744876338771,-887.03,0.00053424,120]
[358254089,1744876338781,-1073.22,0.00053424,120]
[358254090,1744876338790,-500.0,0.00053424,120]
[358254091,1744876338799,-500.0,0.00053424,120]
[358254092,1744876338809,-1152.77,0.00053424,120]
[358254093,1744876338819,-500.0,0.00053424,120]
[358254094,1744876338829,-2168.54,0.00053424,120]
[358254095,1744876338838,-568.46,0.00053424,120]
[358254096,1744876338849,-500.0,0.00053424,120]
[358254097,1744876338858,-888.6,0.00053424,120]
[358254098,1744876338868,-1780.21,0.00053424,120]
[358254099,1744876338878,-979.12,0.00053424,120]
[358254100,1744876338888,-500.0,0.00053424,120]
[358254101,1744876338898,-2832.46,0.00053424,120]
[358254102,1744876338907,-518.93,0.00053424,120]
[358254103,1744876338917,-500.0,0.00053424,120]
[358254104,1744876338926,-1076.61,0.00053424,120]
[358254105,1744876338935,-500.0,0.00053424,120]
[358254106,1744876338946,-889.68,0.00053424,120]
[358254107,1744876338956,-3566.71,0.00053424,120]
[358254108,1744876338966,-1124.76,0.00053424,120]
[358254109,1744876338977,-1217.56,0.00053424,120]
[358254110,1744876338986,-1092.56,0.00053424,120]
[358254111,1744876338996,-1639.19,0.00053424,120]
[358254112,1744876339006,-642.7375173,0.00053424,120]
[358254113,1744876339016,-972.81,0.00053424,118]
[358254114,1744876339026,-1788.27,0.00053424,120]
[358254115,1744876339036,-861.37,0.00053424,120]
[358254116,1744876339046,-822.54,0.00053424,120]
[358254117,1744876339055,-500.0,0.00053424,120]
[358254118,1744876339065,-702.66,0.00053424,120]
[358254119,1744876339075,-1270.01,0.00053424,120]
[358254120,1744876339084,-909.8,0.00053424,120]
[358254121,1744876339095,-593.0,0.00053424,120]
[358254122,1744876339104,-753.51,0.00053424,120]
[358254123,1744876339114,-516.56,0.00053424,120]
[358254124,1744876339124,-973.47,0.00053424,120]
[358254125,1744876339136,-500.0,0.00053424,120]
[358254126,1744876339145,-2790.52,0.00053424,120]
[358254127,1744876339155,-500.0,0.00053424,120]
[358254128,1744876339164,-554.36,0.00053424,120]
[358254129,1744876339175,-555.93,0.00053424,120]
[358254130,1744876339184,-500.0,0.00053424,120]
[358254131,1744876339194,-1344.71,0.00053424,120]
[358254132,1744876339204,-1633.9,0.00053424,120]
[358254133,1744876339216,-1508.99,0.00053424,120]
[358254134,1744876339226,-801.2,0.00053424,120]
[358254135,1744876339236,-2484.07,0.00053424,120]
[358254136,1744876339245,-500.0,0.00053424,120]
[358254137,1744876339255,-3739.63,0.00053424,120]
[358254138,1744876339265,-605.98,0.00053424,120]
[358254139,1744876339277,-3141.6,0.00053424,120]
[358254140,1744876339287,-536.48,0.00053424,120]
[358254141,1744876339296,-1042.98,0.00053424,120]
[358254142,1744876339306,-1821.22,0.00053424,120]
[358254143,1744876339317,-1155.97,0.00053424,120]
[358254144,1744876339327,-500.0,0.00053424,120]
[358254145,1744876339336,-608.82,0.00053424,120]
[358254146,1744876339346,-1542.01,0.00053424,120]
[358254147,1744876339356,-500.0,0.00053424,120]
[358254148,1744876339367,-608.54,0.00053424,120]
[358254149,1744876339378,-1023.29,0.00053424,120]
[358254150,1744876339388,-505.15,0.00053424,120]
[358254151,1744876339397,-996.12,0.00053424,120]
[358254152,1744876339407,-500.0,0.00053424,120]
[358254153,1744876339417,-821.03,0.00053424,120]
[358254154,1744876339427,-533.51,0.00053424,120]
[358254155,1744876339437,-1488.96,0.00053424,120]
[358254156,1744876339447,-2888.97,0.00053424,120]
[358254157,1744876339457,-500.0,0.00053424,120]
[358254158,1744876339468,-605.83,0.00053424,120]
[358254159,1744876339478,-570.18,0.00053424,120]
[358254160,1744876339488,-722.72,0.00053424,120]
[358254161,1744876339498,-754.15,0.00053424,120]
[358254162,1744876339507,-1214.83,0.00053424,120]
[358254163,1744876339517,-500.0,0.00053424,120]
[358254164,1744876339527,-1002.18,0.00053424,8]
[358254165,1744876339537,-1218.38,0.00053424,120]
[358254166,1744876339547,-1097.9,0.00053424,120]
[358254167,1744876339556,-500.0,0.00053424,120]
[358254168,1744876339566,-1622.19,0.00053424,120]
[358254169,1744876339575,-7361.74,0.00053424,120]
[358254170,1744876339586,-779.5,0.00053424,120]
[358254171,1744876339595,-2365.86,0.00053424,120]
[358254172,1744876339606,-750.0,0.0005346,10]
[358254173,1744876339615,-2959.86,0.000535,60]
[358254174,1744876339624,-150.0,0.00053564,30]
[358254175,1744876339633,-150.0,0.00053564,30]
[358254176,1744876339642,-150.0,0.00053564,30]
[358254177,1744876339651,-150.0,0.00053564,30]
[358254178,1744876339659,-155.721,0.00053564,30]
[358254179,1744876339668,-549.24835,0.0005357,95]
[358254180,1744876339676,-150.0,0.000536,2]
[358254181,1744876339684,-2110.0,0.00053602,30]
[358254182,1744876339692,-516.28,0.00053672,14]
[358254183,1744876339701,-500.0,0.00053698,120]
[358254184,1744876339709,-161.357925,0.00053698,120]
[358254185,1744876339717,-171.41279,0.00053698,120]
[358254186,1744876339725,-591.156374,0.00053698,120]
[358254187,1744876339734,-199.642189,0.00053698,120]
[358254188,1744876339742,-227.981738,0.00053698,120]
[358254189,1744876339751,-500.0,0.00053698,120]
[358254190,1744876339761,-1611.74,0.00053698,120]
[358254191,1744876339770,-772.09,0.00053698,120]
[358254192,1744876339779,-3077.05,0.00053698,120]
[358254193,1744876339788,-500.0,0.00053698,120]
[358254194,1744876339797,-516.0,0.00053698,120]
[358254195,1744876339808,-825.74,0.00053698,120]
[358254196,1744876339818,-500.0,0.00053698,120]
[358254197,1744876339828,-500.0,0.00053698,120]
[358254198,1744876339838,-1329.86,0.00053698,120]
[358254199,1744876339847,-1041.46,0.00053698,120]
[358254200,1744876339857,-995.71,0.00053698,120]
[358254201,1744876339866,-500.0,0.00053698,120]
[358254202,1744876339876,-561.46,0.00053698,30]
[358254203,1744876339886,-889.17,0.00053698,120]
[358254204,1744876339895,-1598.19,0.00053698,120]
[358254205,1744876339905,-2447.13,0.00053698,120]
[358254206,1744876339914,-934.81,0.00053698,120]
[358254207,1744876339924,-500.0,0.00053698,120]
[358254208,1744876339933,-558.88,0.00053698,120]
[358254209,1744876339943,-500.0,0.00053698,120]
[358254210,1744876339953,-120995.21,0.00053698,7]
[358254211,1744876339962,-500.0,0.00053698,120]
[358254212,1744876339971,-1597.3,0.00053698,120]
[358254213,1744876339981,-724.18,0.00053698,2]
[358254214,1744876339990,-500.0,0.00053698,120]
[358254215,1744876339999,-1073.23,0.00053698,120]
[358254216,1744876340009,-852.63,0.00053698,120]
[358254217,1744876340018,-9618.82,0.00053698,2]
[358254218,1744876340181,-748.68,0.00053698,120]
[358254219,1744876340191,-507.6,0.00053698,120]
[358254220,1744876340200,-4167.06,0.00053698,120]
[358254221,1744876340210,-547.49,0.00053698,120]
[358254222,1744876340221,-762.47,0.00053698,120]
[358254223,1744876340231,-1761.11,0.00053698,120]
[358254224,1744876340241,-603.07,0.00053698,120]
[358254225,1744876340251,-677.96,0.00053698,120]
[358254226,1744876340260,-895.97,0.00053698,120]
[358254227,1744876340269,-2042.51,0.00053698,120]
[358254228,1744876340280,-2095.32,0.00053698,120]
[358254229,1744876340289,-783.72,0.00053698,120]
[358254230,1744876340298,-568.82,0.00053698,120]
[358254231,1744876340307,-670.78,0.00053698,120]
[358254232,1744876340317,-1727.55,0.00053698,120]
[358254233,1744876340327,-500.0,0.00053698,120]
[358254234,1744876340337,-500.0,0.00053698,120]
[358254235,1744876340346,-1214.17,0.00053698,120]
[358254236,1744876340355,-500.0,0.00053698,120]
[358254237,1744876340365,-563.29,0.00053698,120]
[358254238,1744876340374,-765.17,0.00053698,120]
[358254239,1744876340384,-781.9,0.00053698,120]
[358254240,1744876340393,-2735.7,0.00053698,120]
[358254241,1744876340402,-2102.94,0.00053698,120]
[358254242,1744876340413,-500.0,0.00053698,120]
[358254243,1744876340422,-541.28,0.00053698,120]
[358254244,1744876340431,-524.96,0.00053698,120]
[358254245,1744876340441,-500.0,0.00053698,120]
[358254246,1744876340451,-776.69,0.00053698,120]
[358254247,1744876340460,-1055.54,0.00053698,120]
[358254248,1744876340471,-1656.3,0.00053698,120]
[358254249,1744876340481,-1158.21,0.00053698,35]
[358254250,1744876340491,-1489.79,0.00053698,120]
[358254251,1744876340501,-500.0,0.00053698,120]
[358254252,1744876340510,-1223.23,0.00053698,120]
[358254253,1744876340520,-1296.94,0.00053698,120]
[358254254,1744876340530,-606.92,0.00053698,120]
[358254255,1744876340539,-500.0,0.00053698,120]
[358254256,1744876340549,-1176.7,0.00053698,120]
[358254257,1744876340559,-1628.14,0.00053698,120]
[358254258,1744876340569,-1112.64,0.00053698,120]
[358254259,1744876340578,-2221.31,0.00053698,120]
[358254260,1744876340588,-500.0,0.00053698,120]
[358254261,1744876340598,-500.0,0.00053698,120]
[358254262,1744876340607,-500.0,0.00053698,120]
[358254263,1744876340617,-530.74,0.00053698,120]
[358254264,1744876340626,-862.16,0.00053698,120]
[358254265,1744876340635,-1379.41,0.00053698,120]
[358254266,1744876340645,-507.47,0.00053698,120]
[358254267,1744876340654,-997.54,0.00053698,120]
[358254268,1744876340663,-500.0,0.00053698,120]
[358254269,1744876340672,-1247.38,0.00053698,120]
[358254270,1744876340682,-500.0,0.00053698,120]
[358254271,1744876340691,-519.16,0.00053698,120]
[358254272,1744876340700,-730.71,0.00053698,120]
[358254273,1744876340709,-946.46,0.00053698,120]
[358254274,1744876340718,-561.7,0.00053698,120]
[358254275,1744876340727,-1007.48,0.00053698,120]
[358254276,1744876340736,-559.91,0.00053698,120]
[358254277,1744876340746,-1373.68,0.00053698,120]
[358254278,1744876340755,-940.05,0.00053698,120]
[358254279,1744876340765,-1203.26,0.00053698,120]
[358254280,1744876340775,-825.67,0.00053698,120]
[358254281,1744876340784,-1575.92,0.00053698,120]
[358254282,1744876340793,-1004.58,0.00053698,120]
[358254283,1744876340803,-1167.01,0.00053698,120]
[358254284,1744876340812,-701.01,0.00053698,120]
[358254285,1744876340821,-1323.83,0.00053698,120]
[358254286,1744876340831,-803.28,0.00053698,30]
[358254287,1744876340840,-507.89,0.00053698,120]
[358254288,1744876340849,-1748.54,0.00053698,120]
[358254289,1744876340859,-3514.34,0.00053698,120]
[358254290,1744876340868,-1749.19,0.00053698,120]
[358254291,1744876340878,-1134.15,0.00053698,120]
[358254292,1744876340887,-500.0,0.00053698,120]
[358254293,1744876340897,-1157.9,0.00053698,120]
[358254294,1744876340907,-1115.45,0.00053698,120]
[358254295,1744876340916,-1269.95,0.00053698,120]
[358254296,1744876340926,-1020.0,0.00053698,120]
[358254297,1744876340935,-1129.1,0.00053698,120]
[358254298,1744876340944,-1581.24,0.00053698,120]
[358254299,1744876340953,-766.52,0.00053698,120]
[358254300,1744876340962,-683.59,0.00053698,120]
[358254301,1744876340971,-500.0,0.00053698,120]
[358254302,1744876340980,-605.07,0.00053698,120]
[358254303,1744876340990,-500.0,0.00053698,120]
[358254304,1744876340998,-1943.48,0.00053698,120]
[358254305,1744876341007,-500.0,0.00053698,120]
[358254306,1744876341017,-945.69,0.00053698,120]
[358254307,1744876341026,-500.0,0.00053698,120]
[358254308,1744876341035,-1873.76,0.00053698,120]
[358254309,1744876341045,-566.9,0.00053698,120]
[358254310,1744876341054,-536.75,0.00053698,120]
[358254311,1744876341062,-1511.21,0.00053698,120]
[358254312,1744876341071,-500.0,0.00053698,30]
[358254313,1744876341080,-2015.84,0.00053698,120]
[358254314,1744876341088,-500.0,0.00053698,120]
[358254315,1744876341097,-576.1,0.00053698,120]
[358254316,1744876341106,-500.0,0.00053698,120]
[358254317,1744876341115,-503.02,0.00053698,120]
[358254318,1744876341125,-1485.3,0.00053698,120]
[358254319,1744876341138,-616.82,0.00053698,120]
[358254320,1744876341147,-1889.42,0.00053698,120]
[358254321,1744876341157,-500.0,0.00053698,120]
[358254322,1744876341166,-521.54,0.00053698,120]
[358254323,1744876341177,-500.0,0.00053698,120]
[358254324,1744876341186,-1626.25,0.00053698,120]
[358254325,1744876341196,-1339.26,0.00053698,120]
[358254326,1744876341207,-1497.28,0.00053698,120]
[358254327,1744876341217,-1832.25,0.00053698,120]
[358254328,1744876341227,-630.84,0.00053698,120]
[358254329,1744876341237,-500.0,0.00053698,120]
[358254330,1744876341247,-615.64,0.00053698,120]
[358254331,1744876341256,-692.24,0.00053698,120]
[358254332,1744876341266,-1231.98,0.00053698,120]
[358254333,1744876341276,-1043.32,0.00053698,120]
[358254334,1744876341286,-1684.61,0.00053698,120]
[358254335,1744876341305,-500.0,0.00053698,120]
[358254336,1744876341322,-500.0,0.00053698,120]
[358254337,1744876341342,-635.3197817,0.00053698,120]
[358254338,1744876341361,-668.2,0.00053698,120]
[358254339,1744876341377,-199.52209591,0.00053698,120]
[358254340,1744876341397,-864.39,0.00053698,120]
[358254341,1744876341416,-626.02,0.00053698,120]
[358254342,1744876341435,-1072.56,0.00053698,120]
[358254343,1744876341454,-1764.88,0.00053698,120]
[358254344,1744876341471,-500.0,0.00053698,120]
[358254345,1744876341490,-5640.62,0.00053698,120]
[358254346,1744876341504,-917.98,0.00053698,120]
[358254347,1744876341522,-1475.44,0.00053698,120]
[358254348,1744876341538,-1612.75,0.00053698,120]
[358254349,1744876341554,-500.0,0.00053698,120]
[358254350,1744876341569,-2211.01,0.00053698,120]
[358254351,1744876341584,-791.97,0.00053698,14]
[358254352,1744876341598,-1177.02,0.00053698,120]
[358254353,1744876341612,-1468.16,0.00053698,120]
[358254354,1744876341629,-1829.33,0.00053698,120]
[358254355,1744876341643,-500.0,0.00053698,120]
[358254356,1744876341657,-520.62,0.00053698,120]
[358254357,1744876341673,-500.0,0.00053698,120]
[358254358,1744876341688,-793.46,0.00053698,120]
[358254359,1744876341703,-500.0,0.00053698,120]
[358254360,1744876341719,-1128.03,0.00053698,120]
[358254361,1744876341734,-644.60046314,0.00053698,120]
[358254362,1744876341750,-527.45,0.00053698,120]
[358254363,1744876341766,-500.0,0.00053698,120]
[358254364,1744876341780,-674.54,0.00053698,120]
[358254365,1744876341797,-504.45,0.00053698,120]
[358254366,1744876341812,-155.97783114,0.00053698,120]
[358254367,1744876341828,-500.0,0.00053698,120]
[358254368,1744876341842,-586.57,0.00053698,120]
[358254369,1744876341858,-1036.71,0.00053698,120]
[358254370,1744876341873,-909.38,0.00053698,120]
[358254371,1744876341888,-500.0,0.00053698,120]
[358254372,1744876341903,-500.0,0.00053698,120]
[358254373,1744876341918,-1171.86,0.00053698,120]
[358254374,1744876341933,-2181.26,0.00053698,120]
[358254375,1744876341948,-500.0,0.00053698,120]
[358254376,1744876341963,-675.13,0.00053698,120]
[358254377,1744876341978,-500.0,0.00053698,120]
[358254378,1744876341994,-500.0,0.00053698,120]
[358254379,1744876342008,-1081.53,0.00053698,120]
[358254380,1744876342024,-1595.7,0.00053698,120]
[358254381,1744876342040,-500.0,0.00053698,120]
[358254382,1744876342055,-1097.37,0.00053698,120]
[358254383,1744876342070,-500.0,0.00053698,120]
[358254384,1744876342085,-1093.79,0.00053698,120]
[358254385,1744876342101,-722.02,0.00053698,120]
[358254386,1744876342116,-978.59,0.00053698,120]
[358254387,1744876342134,-1836.63,0.00053698,120]
[358254388,1744876342149,-614.33,0.00053698,120]
[358254389,1744876342164,-1012.01,0.00053698,120]
[358254390,1744876342179,-2529.41,0.00053698,120]
[358254391,1744876342194,-1942.54,0.00053698,120]
[358254392,1744876342209,-443.53156329,0.00053698,120]
[358254393,1744876342224,-2464.72,0.00053698,120]
[358254394,1744876342240,-1110.2,0.00053698,120]
[358254395,1744876342254,-771.84,0.00053698,120]
[358254396,1744876342270,-1931.2,0.00053698,120]
[358254397,1744876342285,-500.0,0.00053698,120]
[358254398,1744876342301,-676.22,0.00053698,120]
[358254399,1744876342316,-601.64,0.00053698,120]
[358254400,1744876342331,-500.0,0.00053698,120]
[358254401,1744876342346,-2027.54,0.00053698,120]
[358254402,1744876342361,-1731.61,0.00053698,120]
[358254403,1744876342376,-506.42,0.00053698,120]
[358254404,1744876342391,-560.74,0.00053698,120]
[358254405,1744876342406,-500.0,0.00053698,120]
[358254406,1744876342421,-1571.6,0.00053698,120]
[358254407,1744876342436,-575.17,0.00053698,120]
[358254408,1744876342451,-500.0,0.00053698,120]
[358254409,1744876342466,-280.73754564,0.00053698,120]
[358254410,1744876342480,-1491.97,0.00053698,120]
[358254411,1744876342496,-500.0,0.00053698,120]
[358254412,1744876342511,-1061.2,0.00053698,120]
[358254413,1744876342527,-559.87,0.00053698,120]
[358254414,1744876342543,-1783.03,0.00053698,120]
[358254415,1744876342557,-500.0,0.00053698,120]
[358254416,1744876342572,-272.68269983,0.00053698,120]
[358254417,1744876342586,-1489.6,0.00053698,120]
[358254418,1744876342600,-3035.42,0.00053698,120]
[358254419,1744876342614,-1985.57,0.00053698,120]
[358254420,1744876342629,-2015.28,0.00053698,120]
[358254421,1744876342644,-835.38,0.00053698,120]
[358254422,1744876342659,-500.0,0.00053698,120]
[358254423,1744876342673,-843.17,0.00053698,120]
[358254424,1744876342687,-728.48,0.00053698,120]
[358254425,1744876342701,-2125.57,0.00053698,120]
[358254426,1744876342715,-506.65,0.00053698,120]
[358254427,1744876342730,-517.91,0.00053698,120]
[358254428,1744876342745,-531.0,0.00053698,120]
[358254429,1744876342761,-1110.06,0.00053698,120]
[358254430,1744876342776,-500.0,0.00053698,120]
[358254431,1744876342792,-3548.1,0.00053698,120]
[358254432,1744876342806,-887.03,0.00053698,120]
[358254433,1744876342822,-1073.22,0.00053698,120]